fUST/lending_fUST_20250617
["ID","MTS","AMOUNT","RATE_DAILY","PERIOD"]
[366243352,1750160242765,-5000.0,0.00019333,2]
[366243353,1750160242792,-233.0,0.00019527,2]
[366243356,1750160270471,200.85,0.00018583,2]
[366243357,1750160313304,-5000.0,0.00019332,2]
[366243358,1750160313327,-197.0,0.00019468,2]
[366243361,1750160381160,-195.79,0.00019022,2]
[366243362,1750160381182,-5000.0,0.00019273,2]
[366243363,1750160381204,-380.21,0.00019928,2]
[366243364,1750160452924,-188.46,0.00019027,2]
[366243365,1750160452945,-1811.54,0.00019729,2]
[366243366,1750160518165,-186.06,0.00019045,2]
[366243367,1750160518186,-3188.46,0.00019729,2]
[366243368,1750160518208,-238.48,0.00019952,2]
[366243369,1750160586160,-5000.0,0.00019752,2]
[366243370,1750160586182,-16.0,0.00019952,2]
[366243371,1750160656755,-180.45,0.00019052,2]
[366243372,1750160656778,-318.55,0.00019959,2]
[366243373,1750160725659,-174.1,0.00019044,2]
[366243374,1750160725684,-325.9,0.00019951,2]
[366243376,1750160786396,5000.0,0.00019,2]
[366243377,1750160788955,-167.74,0.00019056,2]
[366243378,1750160788978,-332.26,0.00019963,2]
[366243379,1750160853614,-161.37,0.00019057,2]
[366243380,1750160853639,-5000.0,0.00019763,2]
[366243381,1750160853665,-202.63,0.00019965,2]
[366243382,1750160924806,-156.74,0.00019135,2]
[366243383,1750160925333,-5000.0,0.00019765,2]
[366243384,1750160925355,-203.26,0.00020046,2]
[366243398,1750161032269,-152.16,0.00019107,2]
[366243400,1750161032279,-3407.21655344,0.00019846,2]
[366243405,1750161032332,-1592.78344656,0.00019846,2]
[366243406,1750161032342,-304.31,0.00020017,2]
[366243407,1750161032352,-1000.0,0.000206,2]
[366243408,1750161032362,-413.73440883,0.000209,4]
[366243409,1750161032372,-456.47,0.00020927,2]
[366243410,1750161032382,-1200.0,0.00021015,2]
[366243411,1750161032391,-1066.67996996,0.00021016,2]
[366243412,1750161032401,-413.73440874,0.00021072,4]
[366243413,1750161032411,-413.73440874,0.00021245,4]
[366243414,1750161032421,-413.73440874,0.00021417,5]
[366243415,1750161032431,-413.73440874,0.0002159,5]
[366243416,1750161032440,-1905.0760576,0.00021629,2]
[366243417,1750161032450,-413.73440874,0.00021762,5]
[366243418,1750161032460,-608.63,0.00021837,2]
[366243419,1750161032469,-413.73440874,0.00021934,6]
[366243420,1750161032479,-1211.7270317,0.00021988,2]
[366243421,1750161032489,-1000.0,0.00021993,2]
[366243422,1750161032498,-413.73440874,0.00022107,6]
[366243423,1750161032508,-413.73440874,0.00022279,6]
[366243424,1750161032517,-413.73440874,0.00022452,7]
[366243425,1750161032527,-413.73440874,0.00022624,7]
[366243426,1750161032537,-760.79,0.00022746,2]
[366243427,1750161032547,-207.4,0.00022793,2]
[366243428,1750161032557,-413.73440874,0.00022797,7]
[366243430,1750161032566,-300.0,0.00022899,2]
[366243431,1750161032577,-181.0,0.00022968,2]
[366243432,1750161032586,-413.73440874,0.00022969,8]
[366243433,1750161032596,-406.0,0.00023138,2]
[366243434,1750161032606,-413.73440874,0.00023141,8]
[366243435,1750161032615,-730.8183294,0.00023241,2]
[366243436,1750161032626,-413.73440874,0.00023314,9]
[366243437,1750161032636,-500.0,0.000234,2]
[366243438,1750161032647,-413.73440874,0.00023486,9]
[366243439,1750161032656,-400.468786,0.00023618,3]
[366243440,1750161032666,-912.94,0.00023656,2]
[366243441,1750161032676,-413.73440874,0.00023659,9]
[366243442,1750161032685,-329.24510642,0.00023722,2]
[366243443,1750161032695,-500.0,0.0002383,2]
[366243444,1750161032704,-429.65159945,0.0002383,2]
[366243445,1750161032713,-500.0,0.0002383,2]
[366243446,1750161032723,-500.0,0.0002383,2]
[366243447,1750161032734,-500.0,0.0002383,2]
[366243448,1750161032744,-500.0,0.0002383,2]
[366243449,1750161032754,-435.70822153,0.0002383,2]
[366243450,1750161032763,-500.0,0.0002383,2]
[366243451,1750161032773,-404.18238933,0.0002383,2]
[366243452,1750161032783,-500.0,0.0002383,2]
[366243453,1750161032791,-245.71911474,0.0002383,2]
[366243454,1750161032800,-413.73440874,0.00023831,10]
[366243455,1750161032809,-3150.17779784,0.00023882,2]
[366243456,1750161032818,-500.0,0.00023884,2]
[366243457,1750161032827,-184.041,0.00023885,5]
[366243458,1750161032836,-4922.38027503,0.000239,2]
[366243459,1750161032846,-500.0,0.00023973,2]
[366243460,1750161032855,-500.0,0.00023973,2]
[366243461,1750161032865,-500.0,0.00023973,2]
[366243462,1750161032874,-500.0,0.00023973,2]
[366243463,1750161032883,-608.98161254,0.00023973,2]
[366243464,1750161032892,-258.84771175,0.00023973,2]
[366243465,1750161032902,-500.0,0.00023989,2]
[366243466,1750161032911,-160.0,0.00023989,2]
[366243467,1750161032921,-575.00545337,0.00023999,2]
[366243468,1750161032930,-500.0,0.00023999,2]
[366243469,1750161032939,-500.0,0.00023999,2]
[366243470,1750161032948,-505.33620912,0.00023999,2]
[366243471,1750161032958,-500.0,0.00023999,2]
[366243472,1750161032967,-369.40045093,0.00023999,2]
[366243473,1750161032976,-600.0,0.00023999,2]
[366243474,1750161032986,-450.0,0.00023999,2]
[366243475,1750161032995,-500.0,0.00023999,2]
[366243476,1750161033005,-500.0,0.00023999,2]
[366243477,1750161033014,-200.0,0.00023999,2]
[366243478,1750161033024,-500.0,0.00023999,2]
[366243479,1750161033034,-500.0,0.00023999,2]
[366243480,1750161033045,-539.33364965,0.00023999,2]
[366243481,1750161033054,-12402.90783765,0.00024,2]
[366243482,1750161033104,-500.0,0.0002383,2]
[366243483,1750161033113,-22.1405719,0.0002383,2]
[366243484,1750161033176,-477.8594281,0.0002383,2]
[366243485,1750161033187,-500.0,0.0002383,2]
[366243486,1750161033197,-500.0,0.0002383,2]
[366243487,1750161033207,-416.13923485,0.0002383,2]
[366243488,1750161033217,-456.68201374,0.0002383,2]
[366243489,1750161033227,-500.0,0.0002383,2]
[366243490,1750161033237,-500.0,0.0002383,2]
[366243491,1750161033248,-500.0,0.0002383,2]
[366243492,1750161033261,-500.0,0.0002383,2]
[366243493,1750161033271,-500.0,0.0002383,2]
[366243494,1750161033280,-627.63426485,0.0002383,2]
[366243495,1750161033290,-500.0,0.0002383,2]
[366243496,1750161033301,-500.0,0.0002383,2]
[366243497,1750161033312,-500.0,0.0002383,2]
[366243498,1750161033322,-116681.55990411,0.00024,2]
[366243539,1750161038441,-630.82917035,0.00023592,2]
[366243541,1750161038451,-500.0,0.0002383,2]
[366243543,1750161038461,-500.0,0.0002383,2]
[366243545,1750161038471,-500.0,0.0002383,2]
[366243547,1750161038481,-3463.69537319,0.00024,2]
[366243549,1750161038493,-286.43279465,0.00024,2]
[366243728,1750161040572,-9688.4775056,0.00024,2]
[366243730,1750161040584,-588.69926164,0.00024,2]
[366243791,1750161043448,-236.4038072,0.0002383,2]
[366243792,1750161043458,-11584.2155067,0.00024,2]
[366243793,1750161043470,-16988.18273863,0.00024,2]
[366243794,1750161043503,-300.83,0.00024,2]
[366243795,1750161043515,-254860.64880243,0.00024,2]
[366243796,1750161043526,-2045.52,0.00024,7]
[366243797,1750161043536,-506.14108,0.00024,2]
[366243799,1750161043546,-6087.0,0.00024,7]
[366243800,1750161043557,-59233.0,0.00024,5]
[366243801,1750161043567,-413.73440874,0.00024003,10]
[366243802,1750161043577,-843.79106908,0.00024004,2]
[366243803,1750161043587,-375.80532245,0.00024018,2]
[366243804,1750161043596,-797.85,0.00024082,2]
[366243806,1750161043605,-887.86,0.000241,2]
[366243807,1750161043615,-1123.31780528,0.000241,5]
[366243809,1750161043628,-221.24384872,0.000241,5]
[366243810,1750161043638,-430.0,0.00024109,6]
[366243812,1750161043647,-490.81705909,0.00024109,6]
[366243813,1750161043657,-460.0,0.00024109,6]
[366243814,1750161043667,-296.46878918,0.00024109,6]
[366243815,1750161043680,-11.79044387,0.00024109,6]
[366243816,1750161043690,-318.20872648,0.00024109,6]
[366243858,1750161046388,-121.79127352,0.00024109,6]
[366243859,1750161046399,-460.0,0.00024109,6]
[366243860,1750161046409,-460.0,0.00024109,6]
[366243861,1750161046419,-445.89913784,0.00024109,6]
[366243862,1750161046754,-0.36619673,0.00024109,6]
[366243863,1750161046778,-13.73466543,0.00024109,6]
[366243864,1750161046788,-460.0,0.00024109,6]
[366243865,1750161046798,-460.0,0.00024109,6]
[366243866,1750161046809,-460.0,0.00024109,6]
[366243867,1750161046818,-427.82461983,0.00024109,6]
[366243868,1750161046828,-460.0,0.00024109,6]
[366243869,1750161046838,-460.0,0.00024109,6]
[366243870,1750161046848,-403.09253174,0.00024109,6]
[366243871,1750161046858,-428.02901617,0.00024109,6]
[366243872,1750161076803,147.46420658,0.00018846,2]
[366243873,1750161076828,2.53579342,0.00018846,2]
[366243874,1750161116207,163.606131,0.00013699,2]
[366243875,1750161155610,150.0,0.0001879,2]
[366243876,1750161181108,-170.0,0.00019684,2]
[366243877,1750161233496,150.0,0.00018827,2]
[366243878,1750161249497,-211.02,0.00019723,2]
[366243879,1750161249539,-288.98,0.0002062,2]
[366243880,1750161313851,150.0,0.00018791,2]
[366243881,1750161315811,-194.47,0.00019686,2]
[366243882,1750161315835,-270.53,0.00020581,2]
[366243890,1750161379212,-21.18,0.00020581,2]
[366243891,1750161379235,-193.058,0.00020581,2]
[366243892,1750161379258,-541.18550883,0.00021016,2]
[366243893,1750161379279,-347.39575227,0.00021416,2]
[366243894,1750161379301,-388.94,0.00021475,2]
[366243895,1750161379324,-486.18,0.0002237,2]
[366243896,1750161379346,-406.0,0.00023148,2]
[366243897,1750161379369,-163.606131,0.00023182,2]
[366243898,1750161379392,-583.41,0.00023265,2]
[366243899,1750161379419,-343.258959,0.00023618,3]
[366243900,1750161379442,-160.0,0.00023999,2]
[366243901,1750161379464,-799.07,0.00024,2]
[366243902,1750161379489,-254.95813688,0.00024009,2]
[366243903,1750161379512,-3281.58685002,0.00024009,2]
[366243904,1750161379533,-177.60891538,0.00024009,2]
[366243905,1750161379554,-300.0,0.00024107,2]
[366243906,1750161379580,-500.0,0.00024108,2]
[366243907,1750161379604,-500.0,0.00024108,2]
[366243908,1750161379625,-402.50381736,0.00024108,2]
[366243909,1750161379650,-500.0,0.00024108,2]
[366243910,1750161379673,-500.0,0.00024108,2]
[366243911,1750161379697,-500.0,0.00024108,2]
[366243912,1750161379723,-500.0,0.00024108,2]
[366243913,1750161379748,-500.0,0.00024108,2]
[366243914,1750161379771,-464.8492168,0.00024108,2]
[366243915,1750161379794,-500.0,0.00024108,2]
[366243917,1750161379818,-435.12658165,0.00024108,2]
[366243918,1750161379839,-249.52434608,0.00024108,2]
[366243919,1750161379862,-378.2424877,0.00024108,2]
[366243920,1750161379883,-161.85355708,0.00024108,2]
[366243921,1750161379904,-417.41721495,0.00024109,6]
[366243922,1750161379928,-432.19609612,0.00024109,6]
[366243923,1750161379952,-460.0,0.00024109,6]
[366243924,1750161379977,-460.0,0.00024109,6]
[366243925,1750161379998,-460.0,0.00024109,6]
[366243926,1750161380019,-434.48339819,0.00024109,6]
[366243927,1750161380039,-437.81077315,0.00024109,6]
[366243928,1750161380061,-433.2531006,0.00024109,6]
[366243929,1750161380084,-430.0,0.00024109,6]
[366243930,1750161380104,-436.92144752,0.00024109,6]
[366243931,1750161380125,-444.57768368,0.00024109,6]
[366243932,1750161380146,-460.0,0.00024109,6]
[366243933,1750161380167,-460.0,0.00024109,6]
[366243934,1750161380189,-460.0,0.00024109,6]
[366243935,1750161380210,-460.0,0.00024109,6]
[366243936,1750161380356,-460.0,0.00024109,6]
[366243937,1750161380378,-421.25909966,0.00024109,6]
[366243938,1750161380404,-460.0,0.00024109,6]
[366243939,1750161380427,-433.90238101,0.00024109,6]
[366243940,1750161380448,-460.0,0.00024109,6]
[366243941,1750161380469,-220.64054507,0.00024109,6]
[366243945,1750161391606,150.0,0.00018794,2]
[366243966,1750161442894,-289.88719468,0.00019492,2]
[366243967,1750161444645,-4710.11280532,0.00019492,2]
[366243968,1750161444675,-78.88719468,0.00019689,2]
[366243976,1750161473454,150.0,0.00018804,2]
[366243988,1750161510048,-150.0,0.00019699,2]
[366243989,1750161510070,-150.0,0.00020594,2]
[366243999,1750161541700,2034.0,0.00018,2]
[366244004,1750161553097,150.0,0.00018806,2]
[366244019,1750161594954,1000.0,0.00019,2]
[366244033,1750161634987,150.0,0.0001879,2]
[366244036,1750161640516,-150.0,0.00019702,2]
[366244037,1750161640536,-500.0,0.00019702,2]
[366244038,1750161640558,-500.0,0.00019702,2]
[366244039,1750161640579,-500.0,0.00019702,2]
[366244040,1750161640604,-500.0,0.00019702,2]
[366244041,1750161640627,-500.0,0.00019702,2]
[366244042,1750161640647,-500.0,0.00019702,2]
[366244043,1750161640668,-493.0,0.00019702,2]
[366244059,1750161706712,-5000.0,0.00019505,2]
[366244060,1750161706735,-61.0,0.00019602,2]
[366244061,1750161710012,150.0,0.00018782,2]
[366244062,1750161768530,255.32,0.00019,2]
[366244063,1750161774904,-108.65996769,0.00019602,2]
[366244064,1750161774927,-150.0,0.00019677,2]
[366244065,1750161774949,-7.0,0.00019702,2]
[366244066,1750161774971,-172.34003231,0.00020571,2]
[366244067,1750161786811,150.0,0.00018641,2]
[366244074,1750161862322,150.0,0.00018594,2]
[366244075,1750161936436,150.0,0.00018616,2]
[366244076,1750161968361,-5000.0,0.00019334,2]
[366244077,1750161968384,-61.0,0.00019529,2]
[366244079,1750162010299,150.0,0.00018599,2]
[366244080,1750162038899,-4998.0,0.00019334,2]
[366244125,1750162082607,150.0,0.00018623,2]
[366244126,1750162108558,-2.0,0.00019334,2]
[366244127,1750162108581,-150.0,0.00019484,2]
[366244128,1750162108602,-183.18855322,0.00019776,2]
[366244129,1750162108623,-164.81144678,0.00020311,2]
[366244131,1750162142027,163.361551,0.00013699,2]
[366244135,1750162156189,150.0,0.00018591,2]
[366244138,1750162232000,150.0,0.00018388,2]
[366244197,1750162232720,-150.0,0.00019264,2]
[366244199,1750162232731,-5000.0,0.00020108,2]
[366244201,1750162232742,-85.18855322,0.00020311,2]
[366244203,1750162232752,-359.4703468,0.00020817,2]
[366244206,1750162232762,-163.361551,0.00020951,2]
[366244208,1750162232773,-168.0,0.00020978,2]
[366244210,1750162232788,-168.0,0.00021153,2]
[366244212,1750162232799,-691.115382,0.00021388,2]
[366244214,1750162232809,-300.0,0.00021809,2]
[366244216,1750162232821,-300.0,0.00021809,2]
[366244218,1750162232831,-565.2382,0.0002181,7]
[366244220,1750162232842,-23681.66205419,0.0002181,2]
[366244222,1750162232852,-565.2382,0.00021866,7]
[366244224,1750162232864,-545.37482281,0.000219,6]
[366244226,1750162232874,-565.2382,0.00021922,7]
[366244228,1750162232884,-565.2382,0.00021978,7]
[366244230,1750162232894,-1185.79933611,0.00022009,2]
[366244232,1750162232904,-565.2382,0.00022035,7]
[366244234,1750162232914,-545.37482252,0.00022038,6]
[366244236,1750162232924,-565.2382,0.00022091,7]
[366244238,1750162232935,-226.0,0.00022146,2]
[366244240,1750162232946,-565.2382,0.00022147,7]
[366244242,1750162232957,-545.37482252,0.00022176,6]
[366244244,1750162232967,-565.2382,0.00022203,7]
[366244247,1750162232978,-565.2382,0.0002226,7]
[366244249,1750162232988,-545.37482252,0.00022314,7]
[366244251,1750162232998,-565.2382,0.00022316,7]
[366244253,1750162233010,-565.2382,0.00022372,7]
[366244254,1750162233020,-565.2382,0.00022428,7]
[366244257,1750162233031,-545.37482252,0.00022452,7]
[366244259,1750162233042,-565.2382,0.00022484,7]
[366244261,1750162233052,-565.2382,0.00022541,7]
[366244263,1750162233062,-545.37482252,0.0002259,7]
[366244265,1750162233072,-565.2382,0.00022597,7]
[366244267,1750162233083,-565.2382,0.00022653,7]
[366244269,1750162233092,-207.4,0.00022687,2]
[366244271,1750162233102,-246.162,0.00022709,2]
[366244273,1750162233112,-565.2382,0.00022709,7]
[366244275,1750162233122,-545.37482252,0.00022728,7]
[366244276,1750162233132,-565.2382,0.00022765,7]
[366244278,1750162233142,-168.0,0.00022782,2]
[366244279,1750162233152,-565.2382,0.00022822,7]
[366244281,1750162233164,-545.37482252,0.00022866,8]
[366244283,1750162233174,-168.0,0.0002287,2]
[366244285,1750162233184,-565.2382,0.00022878,7]
[366244286,1750162233194,-565.2382,0.00022934,7]
[366244288,1750162233204,-500.0,0.0002299,7]
[366244289,1750162233215,-565.2382,0.0002299,7]
[366244290,1750162233225,-545.37482252,0.00023003,8]
[366244291,1750162233235,-565.2382,0.00023046,7]
[366244292,1750162233245,-168.0,0.00023098,2]
[366244293,1750162233255,-565.2382,0.00023103,7]
[366244294,1750162233271,-545.37482252,0.00023141,8]
[366244295,1750162233282,-565.2382,0.00023159,7]
[366244296,1750162233292,-565.2382,0.00023215,7]
[366244297,1750162233302,-500.0,0.00023239,2]
[366244298,1750162233312,-281.75267215,0.00023239,2]
[366244299,1750162233322,-500.0,0.00023239,2]
[366244300,1750162233331,-500.0,0.00023239,2]
[366244301,1750162233341,-500.0,0.00023239,2]
[366244302,1750162233351,-500.0,0.00023239,2]
[366244303,1750162233360,-1000.0,0.0002324,2]
[366244304,1750162233371,-606.66387775,0.00023264,7]
[366244305,1750162233381,-565.2382,0.00023271,7]
[366244306,1750162233392,-545.37482252,0.00023279,8]
[366244307,1750162233402,-565.2382,0.00023327,7]
[366244308,1750162233412,-565.2382,0.00023384,7]
[366244309,1750162233422,-545.37482252,0.00023417,9]
[366244310,1750162233433,-565.2382,0.0002344,7]
[366244311,1750162233443,-565.2382,0.00023496,7]
[366244312,1750162233454,-565.2382,0.00023552,7]
[366244313,1750162233465,-545.37482252,0.00023555,9]
[366244314,1750162233475,-160.0,0.00023565,3]
[366244315,1750162233485,-565.2382,0.00023609,7]
[366244316,1750162233495,-294.221965,0.00023625,3]
[366244317,1750162233506,-565.2382,0.00023665,7]
[366244318,1750162233516,-545.37482252,0.00023693,9]
[366244319,1750162233526,-420.0,0.00023704,2]
[366244320,1750162233536,-565.2382,0.00023721,7]
[366244321,1750162233546,-565.2382,0.00023777,7]
[366244322,1750162233555,-545.37482252,0.00023831,10]
[366244323,1750162233566,-565.2382,0.00023833,7]
[366244324,1750162233576,-168.0,0.00023845,2]
[366244325,1750162233587,-565.2382,0.0002389,7]
[366244326,1750162233596,-1000.0,0.00023894,2]
[366244327,1750162233607,-565.2382,0.00023946,7]
[366244328,1750162233617,-545.37482252,0.00023969,10]
[366244329,1750162233628,-1000.0,0.00023999,2]
[366244330,1750162233638,-1000.0,0.00023999,2]
[366244331,1750162233648,-1000.0,0.00023999,2]
[366244332,1750162233659,-1000.0,0.00023999,2]
[366244333,1750162233670,-1000.0,0.00023999,2]
[366244334,1750162233681,-719.16,0.00024,2]
[366244335,1750162233690,-565.2382,0.00024002,7]
[366244336,1750162233701,-567.07308898,0.00024009,2]
[366244337,1750162233711,-2187.72456668,0.00024009,2]
[366244338,1750162233722,-567.07308897,0.00024016,2]
[366244339,1750162233734,-567.07308897,0.00024023,2]
[366244340,1750162233744,-567.07308897,0.00024029,2]
[366244341,1750162233754,-567.07308897,0.00024036,2]
[366244342,1750162233764,-215.0738,0.00024056,2]
[366244343,1750162233775,-565.2382,0.00024058,7]
[366244344,1750162233788,-203.23588872,0.00024064,4]
[366244345,1750162233799,-203.23,0.00024064,4]
[366244346,1750162233810,-158.07235789,0.00024064,4]
[366244347,1750162233820,-158.07235789,0.00024064,4]
[366244348,1750162233830,-158.07235789,0.00024064,4]
[366244349,1750162233841,-158.07235789,0.00024064,4]
[366244350,1750162233851,-158.72340783,0.00024064,4]
[366244351,1750162233861,-158.72340783,0.00024064,4]
[366244352,1750162233874,-158.72340783,0.00024064,4]
[366244353,1750162233884,-158.72340783,0.00024064,4]
[366244354,1750162233894,-158.72340783,0.00024064,4]
[366244355,1750162233904,-158.72340783,0.00024064,4]
[366244356,1750162233914,-158.72340783,0.00024064,4]
[366244357,1750162233924,-158.72340783,0.00024064,4]
[366244358,1750162233934,-158.72,0.00024064,4]
[366244359,1750162233944,-166.65957822,0.00024064,4]
[366244360,1750162233954,-166.65957822,0.00024064,4]
[366244361,1750162233964,-166.65957822,0.00024064,4]
[366244362,1750162233974,-166.65957822,0.00024064,4]
[366244363,1750162233984,-166.65957822,0.00024064,4]
[366244364,1750162233994,-166.65957822,0.00024064,4]
[366244365,1750162234003,-166.65957822,0.00024064,4]
[366244366,1750162234013,-166.65957822,0.00024064,4]
[366244367,1750162234023,-166.65957822,0.00024064,4]
[366244368,1750162234033,-166.65957822,0.00024064,4]
[366244369,1750162234043,-166.65957822,0.00024064,4]
[366244370,1750162234053,-166.65957822,0.00024064,4]
[366244371,1750162234062,-166.65957822,0.00024064,4]
[366244372,1750162234072,-166.65957822,0.00024064,4]
[366244373,1750162234082,-166.65957822,0.00024064,4]
[366244374,1750162234092,-166.65957822,0.00024064,4]
[366244375,1750162234102,-245.34343531,0.00024064,4]
[366244376,1750162234111,-245.34343531,0.00024064,4]
[366244377,1750162234121,-245.34343531,0.00024064,4]
[366244378,1750162234131,-245.34343531,0.00024064,4]
[366244379,1750162234140,-245.34343531,0.00024064,4]
[366244380,1750162234149,-245.34343531,0.00024064,4]
[366244381,1750162234159,-245.34343531,0.00024064,4]
[366244382,1750162234170,-245.34343531,0.00024064,4]
[366244383,1750162234180,-245.34343531,0.00024064,4]
[366244384,1750162234191,-245.34343531,0.00024064,4]
[366244385,1750162234202,-245.34343531,0.00024064,4]
[366244386,1750162234212,-245.34343531,0.00024064,4]
[366244387,1750162234222,-245.34343531,0.00024064,4]
[366244388,1750162234231,-245.34343531,0.00024064,4]
[366244389,1750162234241,-245.34343531,0.00024064,4]
[366244390,1750162234250,-245.34343531,0.00024064,4]
[366244391,1750162234261,-245.34343531,0.00024064,4]
[366244392,1750162234271,-245.34343531,0.00024064,4]
[366244393,1750162234281,-245.34343531,0.00024064,4]
[366244394,1750162234291,-245.34,0.00024064,4]
[366244395,1750162234301,-572.46801572,0.00024064,4]
[366244396,1750162234311,-572.46801572,0.00024064,4]
[366244397,1750162234320,-572.46801572,0.00024064,4]
[366244398,1750162234329,-572.46801572,0.00024064,4]
[366244399,1750162234339,-572.46801572,0.00024064,4]
[366244400,1750162234348,-572.46801572,0.00024064,4]
[366244401,1750162234358,-572.46801572,0.00024064,4]
[366244402,1750162234368,-572.46801572,0.00024064,4]
[366244403,1750162234377,-572.46801572,0.00024064,4]
[366244404,1750162234387,-572.46801572,0.00024064,4]
[366244405,1750162234397,-572.46801572,0.00024064,4]
[366244406,1750162234407,-572.46801572,0.00024064,4]
[366244407,1750162234416,-572.46801572,0.00024064,4]
[366244408,1750162234425,-572.46801572,0.00024064,4]
[366244409,1750162234435,-572.46801572,0.00024064,4]
[366244410,1750162234444,-572.46801572,0.00024064,4]
[366244411,1750162234454,-158.07235789,0.0002407,4]
[366244412,1750162234463,-150.0,0.000241,5]
[366244413,1750162234473,-545.37482252,0.00024107,10]
[366244414,1750162234482,-2000.0,0.00024108,7]
[366244415,1750162234492,-2000.0,0.00024108,7]
[366244416,1750162234502,-2000.0,0.00024108,7]
[366244417,1750162234511,-2000.0,0.00024108,7]
[366244418,1750162234521,-2000.0,0.00024108,7]
[366244419,1750162234531,-2000.0,0.00024108,7]
[366244420,1750162234540,-2000.0,0.00024108,7]
[366244421,1750162234550,-940.47515028,0.00024108,7]
[366244422,1750162234559,-500.0,0.00024108,2]
[366244423,1750162234569,-440.0,0.00024109,6]
[366244424,1750162234580,-430.0,0.00024109,6]
[366244425,1750162234591,-422.15097739,0.00024109,6]
[366244426,1750162234600,-460.0,0.00024109,6]
[366244427,1750162234611,-370.71691079,0.00024109,6]
[366244428,1750162234620,-475.90325592,0.00024109,6]
[366244429,1750162234630,-460.0,0.00024109,6]
[366244430,1750162234640,-441.82302373,0.00024109,6]
[366244431,1750162234650,-460.0,0.00024109,6]
[366244432,1750162234660,-261.73183314,0.00024109,6]
[366244433,1750162234670,-374.10454074,0.00024109,6]
[366244434,1750162234682,-460.0,0.00024109,6]
[366244435,1750162234692,-460.0,0.00024109,6]
[366244436,1750162234701,-440.0,0.00024109,6]
[366244437,1750162234711,-460.0,0.00024109,6]
[366244438,1750162234720,-462.557886,0.00024109,6]
[366244439,1750162234730,-438.52891012,0.00024109,6]
[366244440,1750162234741,-373.21519371,0.00024109,6]
[366244441,1750162234912,-303.93147368,0.00024109,6]
[366244442,1750162234941,-460.0,0.00024109,6]
[366244443,1750162234953,-399.82616774,0.00024109,6]
[366244444,1750162234962,-196.07256136,0.00024109,6]
[366244445,1750162234971,-445.07837436,0.00024109,6]
[366244446,1750162234980,-460.0,0.00024109,6]
[366244447,1750162234990,-277.74136154,0.00024109,6]
[366244448,1750162234999,-460.0,0.00024109,6]
[366244449,1750162235012,-460.0,0.00024109,6]
[366244450,1750162235021,-460.0,0.00024109,6]
[366244451,1750162235030,-460.0,0.00024109,6]
[366244452,1750162235038,-460.0,0.00024109,6]
[366244453,1750162235047,-460.0,0.00024109,6]
[366244454,1750162235055,-433.8940089,0.00024109,6]
[366244455,1750162235064,-460.0,0.00024109,6]
[366244456,1750162235074,-460.0,0.00024109,6]
[366244457,1750162235083,-460.0,0.00024109,6]
[366244458,1750162235093,-421.73031922,0.00024109,6]
[366244459,1750162235103,-460.0,0.00024109,6]
[366244460,1750162235112,-460.0,0.00024109,6]
[366244461,1750162235122,-512.20648113,0.00024109,6]
[366244462,1750162235131,-460.0,0.00024109,6]
[366244463,1750162235142,-460.0,0.00024109,6]
[366244464,1750162235151,-460.12278625,0.00024109,2]
[366244465,1750162235160,-500.0,0.00024109,6]
[366244466,1750162235170,-500.0,0.00024109,6]
[366244467,1750162235181,-500.0,0.00024109,6]
[366244468,1750162235191,-500.0,0.00024109,6]
[366244469,1750162235201,-500.0,0.00024109,6]
[366244470,1750162235210,-500.0,0.00024109,6]